bitfinex-derivatives/quotes_BTCF0:USTF0_20250402
["timestamp","ask_amount","ask_price","bid_price","bid_amount"]
[1743561177314,0.13629754,84911.0,84910.0,0.13426509]
[1743561177508,0.13629754,84911.0,84910.0,0.29146509]
[1743561179315,0.13689755,84911.0,84910.0,0.29146509]
[1743561179515,0.13629754,84911.0,84910.0,0.29146509]
[1743561180919,0.13693754,84911.0,84910.0,0.2756611]
[1743561181115,0.13629754,84911.0,84910.0,0.29142168]
[1743561182016,0.0004,84911.0,84910.0,0.29142168]
[1743561183221,0.0089387,84921.0,84920.0,0.1177673]
[1743561183421,0.00060001,84921.0,84920.0,0.1183673]
[1743561183730,0.1681645,84922.0,84921.0,0.1177659]
[1743561183919,0.1688045,84922.0,84921.0,0.1183659]
[1743561184120,0.29893588,84922.0,84921.0,0.2215659]
[1743561186629,0.18117138,84922.0,84921.0,0.2215659]
[1743561186825,0.18053138,84922.0,84921.0,0.2215659]
[1743561187517,0.18113139,84922.0,84921.0,0.2215659]
[1743561188531,0.29889589,84922.0,84921.0,0.2215659]
[1743561188941,0.29889589,84922.0,84921.0,0.23689669]
[1743561189131,0.18113139,84922.0,84921.0,0.23689669]
[1743561189330,0.18113139,84922.0,84921.0,0.25276183]
[1743561189824,0.13073139,84922.0,84921.0,0.25276183]
[1743561190732,0.13013138,84922.0,84921.0,0.25276363]
[1743561191029,0.13013138,84922.0,84921.0,0.23743284]
[1743561191219,0.1700595,84926.0,84925.0,0.1177603]
[1743561191419,0.17065951,84926.0,84925.0,0.1183603]
[1743561191616,0.30128252,84926.0,84925.0,0.1183603]
[1743561192031,0.18352302,84926.0,84925.0,0.2239603]
[1743561195223,0.30128192,84926.0,84925.0,0.2239603]
[1743561195433,0.35178192,84926.0,84925.0,0.2239603]
[1743561196232,0.23402302,84926.0,84925.0,0.2239603]
[1743561197035,0.35178192,84926.0,84925.0,0.2239603]
[1743561197224,0.35178192,84926.0,84925.0,0.23980181]
[1743561198626,0.35178192,84926.0,84925.0,0.23979919]
[1743561198833,0.35178192,84926.0,84925.0,0.01643889]
[1743561199035,0.1177686,84920.0,84919.0,0.1177673]
[1743561199327,0.1184086,84920.0,84919.0,0.13420674]
[1743561199529,0.2480361,84920.0,84919.0,0.1183673]
[1743561200034,0.1891512,84920.0,84919.0,0.13409098]
[1743561200333,0.2918512,84920.0,84919.0,0.13409098]
[1743561202122,0.2918512,84920.0,84919.0,0.01632368]
[1743561202327,0.117777,84913.0,84912.0,0.11795509]
[1743561202524,0.00076,84913.0,84912.0,0.13432148]
[1743561202728,0.0522,84914.0,84913.0,0.117777]
[1743561203034,0.0522,84914.0,84913.0,0.13418246]
[1743561203224,0.18301483,84914.0,84913.0,0.24348246]
[1743561204022,0.30079043,84914.0,84913.0,0.24348246]
[1743561206740,0.18301483,84914.0,84913.0,0.24348246]
[1743561207823,0.30079043,84914.0,84913.0,0.24348246]
[1743561212832,0.30079043,84914.0,84913.0,0.24354881]
[1743561220743,0.30079043,84914.0,84913.0,0.173317]
[1743561220941,0.30079043,84914.0,84913.0,0.18906304]
[1743561223547,0.30079043,84914.0,84913.0,0.173317]
[1743561223848,0.30079043,84914.0,84913.0,0.00064]
[1743561224036,0.117777,84913.0,84912.0,0.11795419]
[1743561224237,0.533277,84913.0,84912.0,0.13430702]
[1743561224432,0.71290962,84913.0,84912.0,0.13430702]
[1743561225644,0.72347562,84913.0,84912.0,0.00081669]
[1743561226544,0.72347562,84913.0,84912.0,0.11859509]
[1743561227448,0.72347562,84913.0,84912.0,0.00081669]
[1743561227650,0.72347562,84913.0,84912.0,0.00017669]
[1743561228847,0.72347562,84913.0,84912.0,0.00077669]
[1743561229445,0.71290962,84913.0,84912.0,0.00017669]
[1743561229654,0.72348291,84913.0,84912.0,0.00017669]
[1743561230049,0.72348291,84913.0,84912.0,0.00077669]
[1743561230456,0.86399849,84913.0,84912.0,0.00017669]
[1743561230648,0.86399849,84913.0,84912.0,0.00093669]
[1743561230846,0.86399849,84913.0,84912.0,0.05237669]
[1743561231046,0.86399849,84913.0,84912.0,0.00017669]
[1743561235555,0.86399103,84913.0,84912.0,0.00017669]
[1743561237062,0.86399103,84913.0,84912.0,0.00093669]
[1743561238061,0.86398859,84913.0,84912.0,0.05363669]
[1743561238859,0.86398859,84913.0,84912.0,0.05287669]
[1743561239264,0.86398859,84913.0,84912.0,0.00081669]
[1743561239466,0.86398859,84913.0,84912.0,0.00017669]
[1743561239769,0.8534252,84913.0,84912.0,0.00017669]
[1743561240665,0.8534252,84913.0,84887.0,0.36307]
[1743561240666,0.1178006,84897.0,84887.0,0.36307]
[1743561240864,0.1185606,84897.0,84896.0,0.2268]
[1743561241167,0.30039049,84897.0,84896.0,0.22756]
[1743561241666,0.30039049,84897.0,84896.0,0.24308776]
[1743561242172,0.30039049,84897.0,84896.0,0.24408776]
[1743561242671,0.24799049,84897.0,84896.0,0.24408776]
[1743561243275,0.24799049,84897.0,84896.0,0.12626566]
[1743561243567,0.30129049,84897.0,84896.0,0.11076]
[1743561243761,0.30129049,84897.0,84896.0,0.00176]
[1743561244163,0.1178075,84891.0,84890.0,0.28133466]
[1743561244466,0.47964751,84891.0,84890.0,0.28201466]
[1743561244661,0.61478283,84891.0,84890.0,0.28201466]
[1743561245066,0.61478283,84891.0,84890.0,0.29739208]
[1743561245658,0.61478283,84891.0,84890.0,0.30039208]
[1743561246575,0.61478283,84891.0,84890.0,0.02205742]
[1743561246869,0.61478283,84891.0,84890.0,0.02137742]
[1743561247764,0.1178241,84879.0,84853.0,0.56215412]
[1743561247968,0.4796241,84879.0,84878.0,0.28233466]
[1743561248173,0.6135687,84879.0,84878.0,0.28233466]
[1743561248373,0.6676687,84879.0,84878.0,0.28233466]
[1743561249259,0.67665054,84879.0,84878.0,0.28233466]
[1743561249564,0.67665054,84879.0,84878.0,0.013]
[1743561249764,0.67665054,84879.0,84878.0,0.012]
[1743561250469,0.50472644,84879.0,84878.0,0.1298255]
[1743561250670,0.50472644,84879.0,84878.0,0.1304255]
[1743561250671,0.26175054,84879.0,84878.0,0.1304255]
[1743561250873,0.26175054,84879.0,84878.0,0.2384255]
[1743561252170,0.26175054,84879.0,84878.0,0.1206]
[1743561254062,0.26175054,84879.0,84878.0,0.2384255]
[1743561254868,0.26175054,84879.0,84878.0,0.1206]
[1743561255268,0.26175054,84879.0,84878.0,0.12]
[1743561256673,0.26175054,84879.0,84878.0,0.06628]
[1743561256880,0.26175054,84879.0,84878.0,0.0656]
[1743561258978,0.31695054,84879.0,84878.0,0.0656]
[1743561259379,0.31695054,84879.0,84878.0,0.0662]
[1743561260178,0.31695054,84879.0,84878.0,0.012]
[1743561265087,0.1178353,84871.0,84870.0,0.000648]
[1743561265381,0.1178353,84871.0,84857.0,0.0552]
[1743561265382,0.1178533,84858.0,84857.0,0.0552]
[1743561265590,0.1188533,84858.0,84857.0,0.05588]
[1743561265778,0.2497548,84858.0,84857.0,0.05588]
[1743561265979,0.3023548,84858.0,84857.0,0.1730547]
[1743561266182,0.3023548,84858.0,84857.0,0.1736547]
[1743561266581,0.3023548,84858.0,84857.0,0.0558]
[1743561267084,0.3023548,84858.0,84857.0,0.1736547]
[1743561267693,0.3033548,84858.0,84857.0,0.1786547]
[1743561267880,0.3043548,84858.0,84857.0,0.1836547]
[1743561268074,0.3043548,84858.0,84857.0,0.0658]
[1743561268475,0.31612906,84858.0,84857.0,0.0658]
[1743561269086,0.67692906,84858.0,84857.0,0.0658]
[1743561269287,0.67692906,84858.0,84857.0,0.0652]
[1743561269490,0.67592906,84858.0,84857.0,0.0602]
[1743561269788,0.67692906,84858.0,84857.0,0.0612]
[1743561270090,0.6651548,84858.0,84857.0,0.0612]
[1743561270875,0.6641548,84858.0,84857.0,0.0612]
[1743561271485,0.6641548,84858.0,84857.0,0.0618]
[1743561271690,0.6641548,84858.0,84857.0,0.0612]
[1743561271893,0.7183548,84858.0,84857.0,0.0612]
[1743561272590,0.730262,84858.0,84857.0,0.0612]
[1743561275489,0.730262,84858.0,84857.0,0.0618]
[1743561275690,0.730262,84858.0,84857.0,0.0612]
[1743561276682,0.7183548,84858.0,84857.0,0.0612]
[1743561276887,0.6641548,84858.0,84857.0,0.0612]
[1743561277687,0.6641548,84858.0,84857.0,0.0618]
[1743561277893,0.7451948,84858.0,84857.0,0.0612]
[1743561281683,0.0589294,84854.0,84843.0,0.1178734]
[1743561281884,0.0589329,84849.0,84844.0,0.0557]
[1743561282091,0.1178783,84840.0,84839.0,0.0567]
[1743561282285,0.1178783,84840.0,84839.0,0.0573]
[1743561282286,0.4796783,84840.0,84839.0,0.0573]
[1743561282496,0.6159558,84840.0,84839.0,0.0573]
[1743561282703,0.7273558,84840.0,84839.0,0.0573]
[1743561284596,0.7283558,84840.0,84839.0,0.0613]
[1743561284891,0.7293558,84840.0,84839.0,0.0613]
[1743561285499,0.7293558,84840.0,84839.0,0.0046]
[1743561285899,0.7293558,84840.0,84839.0,0.0586]
[1743561289399,0.7293558,84840.0,84839.0,0.058]
[1743561289599,0.3685558,84840.0,84839.0,0.058]
[1743561289796,0.7293558,84840.0,84839.0,0.05868]
[1743561290210,0.7293558,84840.0,84839.0,0.058]
[1743561292902,0.8103558,84840.0,84839.0,0.058]
[1743561293107,0.8103558,84840.0,84834.0,0.0541]
[1743561293108,0.1178853,84835.0,84834.0,0.0541]
[1743561293308,0.11892531,84835.0,84834.0,0.1719866]
[1743561293607,0.25299377,84835.0,84834.0,0.0547]
[1743561293810,0.25299377,84835.0,84834.0,0.0541]
[1743561294606,0.25499377,84835.0,84834.0,0.00464]
[1743561294808,0.30769377,84835.0,84834.0,0.004]
[1743561295011,0.30769377,84835.0,84834.0,0.0046]
[1743561295710,0.30669377,84835.0,84834.0,0.0046]
[1743561295907,0.30569377,84835.0,84834.0,0.0006]
[1743561296114,0.30669377,84835.0,84834.0,0.0016]
[1743561296411,0.13610847,84835.0,84834.0,0.1194866]
[1743561296616,0.00204001,84835.0,84834.0,0.1732866]
[1743561296820,0.001,84835.0,84834.0,0.18517744]
[1743561301218,0.0001768,84848.0,84847.0,0.1178686]
[1743561301524,0.0001768,84848.0,84847.0,0.1184686]
[1743561301820,0.13162644,84848.0,84847.0,0.1184686]
[1743561302027,0.13262644,84848.0,84847.0,0.2268686]
[1743561302522,0.13262644,84848.0,84847.0,0.2278686]
[1743561305235,0.13162644,84848.0,84847.0,0.2278686]
[1743561305439,0.13270644,84848.0,84847.0,0.2278686]
[1743561306937,0.25057364,84848.0,84847.0,0.2278686]
[1743561307530,0.29737364,84848.0,84847.0,0.1194686]
[1743561308030,0.29737364,84848.0,84847.0,0.0016]
[1743561308226,0.29737364,84848.0,84847.0,0.1194686]
[1743561310432,0.29737364,84848.0,84847.0,0.0016]
[1743561310637,0.37833364,84848.0,84847.0,0.0016]
[1743561310832,0.0589378,84842.0,84835.0,0.058942]
[1743561311047,0.117888,84836.0,84835.0,0.059542]
[1743561311241,0.11908801,84836.0,84835.0,0.0006]
[1743561311433,0.25329863,84836.0,84835.0,0.0006]
[1743561311630,0.1178894,84832.0,84831.0,0.0001768]
[1743561311838,0.1178908,84831.0,84830.0,0.21162238]
[1743561312032,0.1178964,84827.0,84826.0,0.28133466]
[1743561312338,0.1178964,84827.0,84806.0,0.00047166]
[1743561312339,0.1179047,84821.0,84806.0,0.00047166]
[1743561312638,0.4787144,84814.0,84811.0,0.1179181]
[1743561312845,0.4802344,84814.0,84812.0,0.1179165]
[1743561313030,0.61698168,84814.0,84812.0,0.1179165]
[1743561313237,0.61698168,84814.0,84813.0,0.54106408]
[1743561313555,0.71448168,84814.0,84813.0,0.54106408]
[1743561313733,0.71448168,84814.0,84813.0,0.42314828]
[1743561315949,0.1179158,84813.0,84812.0,0.1179167]
[1743561316147,0.1179186,84811.0,84810.0,0.1179199]
[1743561316346,0.1194386,84811.0,84810.0,0.1179199]
[1743561316541,0.24905772,84811.0,84810.0,0.1179199]
[1743561316846,0.29595772,84811.0,84810.0,0.1179199]
[1743561317046,0.1179242,84807.0,84806.0,0.00047166]
[1743561317249,0.48028421,84807.0,84806.0,0.00047166]
[1743561317449,0.61280465,84807.0,84806.0,0.00047166]
[1743561318538,0.61380465,84807.0,84806.0,0.00147166]
[1743561318734,0.61380465,84807.0,84806.0,0.11939726]
[1743561318735,0.70830465,84807.0,84806.0,0.11939726]
[1743561320742,0.71713635,84807.0,84806.0,0.11939726]
[1743561322647,0.35633635,84807.0,84806.0,0.11939726]
[1743561322853,0.71713635,84807.0,84806.0,0.11939726]
[1743561325050,0.71713635,84807.0,84806.0,0.00147166]
[1743561326352,0.0589691,84797.0,84790.0,0.11841905]
[1743561326558,0.1179464,84791.0,84790.0,0.05047175]
[1743561326851,0.1194664,84791.0,84790.0,0.05047175]
[1743561327155,0.25359257,84791.0,84790.0,0.09757175]
[1743561327551,0.25359257,84791.0,84790.0,0.09857175]
[1743561327859,0.25459257,84791.0,84790.0,0.09857175]
[1743561328348,0.25559257,84791.0,84790.0,0.09857175]
[1743561329160,0.30389257,84791.0,84790.0,0.09857175]
[1743561329350,0.30389257,84791.0,84790.0,0.21651395]
[1743561333159,0.30389257,84791.0,84790.0,0.21551395]
[1743561333662,0.30289257,84791.0,84790.0,0.00047175]
[1743561333956,0.30389257,84791.0,84790.0,0.00047175]
[1743561334166,0.30389257,84791.0,84784.0,0.0495]
[1743561334351,0.30389257,84791.0,84779.0,0.1179625]
[1743561334352,0.1179576,84783.0,84779.0,0.1179625]
[1743561334658,0.2004376,84783.0,84782.0,0.11807697]
[1743561334862,0.33193705,84783.0,84782.0,0.11807697]
[1743561335352,0.42663705,84783.0,84782.0,0.11807697]
[1743561335961,0.1199465,84791.0,84782.0,0.45561797]
[1743561336162,0.00208001,84791.0,84790.0,0.4787478]
[1743561336359,0.12102641,84791.0,84790.0,0.4793478]
[1743561336657,0.13477267,84791.0,84790.0,0.5740478]
[1743561336859,0.13369266,84791.0,84790.0,0.5740478]
[1743561337463,0.25163906,84791.0,84790.0,0.5740478]
[1743561337650,0.25063906,84791.0,84790.0,0.5740478]
[1743561337850,0.25163906,84791.0,84790.0,0.2132478]
[1743561338866,0.25063906,84791.0,84790.0,0.2132478]
[1743561339057,0.25163906,84791.0,84790.0,0.2132478]
[1743561344358,0.34563906,84791.0,84790.0,0.2132478]
[1743561344559,0.13369266,84791.0,84790.0,0.2132478]
[1743561344770,0.25163906,84791.0,84790.0,0.2132478]
[1743561346264,0.34633906,84791.0,84790.0,0.2132478]
[1743561348465,0.29983906,84791.0,84790.0,0.2132478]
[1743561364485,0.14046426,84794.0,84793.0,0.1179436]
[1743561364677,0.14126426,84794.0,84793.0,0.4787436]
[1743561364882,0.14046426,84794.0,84793.0,0.4793836]
[1743561365085,0.38201536,84794.0,84793.0,0.4793836]
[1743561365287,0.38201536,84794.0,84793.0,0.00064]
[1743561365482,0.1179464,84791.0,84790.0,0.0589738]
[1743561365705,0.1187064,84791.0,84790.0,0.00076]
[1743561365890,0.62456965,84791.0,84790.0,0.00076]
[1743561366193,0.1179534,84786.0,84785.0,0.1179537]
[1743561366382,0.1187134,84786.0,84785.0,0.1185537]
[1743561366591,0.24859427,84786.0,84785.0,0.1185537]
[1743561366996,0.34639427,84786.0,84785.0,0.1185537]
[1743561367196,0.34639427,84786.0,84785.0,0.0006]
[1743561367395,0.1179576,84783.0,84782.0,0.11807667]
[1743561367598,0.4795176,84783.0,84782.0,0.11867667]
[1743561367900,0.4795176,84783.0,84782.0,0.11807667]
[1743561367901,0.60255372,84783.0,84782.0,0.11807667]
[1743561368598,0.60255372,84783.0,84782.0,0.11867667]
[1743561369511,0.60355372,84783.0,84782.0,0.11967667]
[1743561369698,0.60455372,84783.0,84782.0,0.12167667]
[1743561370602,0.12579612,84783.0,84782.0,0.12167667]
[1743561370806,0.12579612,84783.0,84782.0,0.16927667]
[1743561371002,0.24375372,84783.0,84782.0,0.16927667]
[1743561371201,0.33635372,84783.0,84782.0,0.16927667]
[1743561371605,0.21839612,84783.0,84782.0,0.16927667]
[1743561371904,0.33635372,84783.0,84782.0,0.12167667]
[1743561373411,0.44151306,84783.0,84782.0,0.12167667]
[1743561376804,0.1179659,84777.0,84774.0,0.00047184]
[1743561377113,0.1179659,84777.0,84752.0,0.3608]
[1743561377114,0.1179896,84760.0,84752.0,0.3608]
[1743561377299,0.1179896,84760.0,84759.0,0.42382828]
[1743561377300,0.21037202,84760.0,84759.0,0.42382828]
[1743561377508,0.32803242,84760.0,84759.0,0.00068]
[1743561377712,0.117991,84759.0,84748.0,0.62039928]
[1743561377906,0.118911,84759.0,84748.0,0.62039928]
[1743561378101,0.25442993,84759.0,84748.0,0.62039928]
[1743561378409,0.25442993,84759.0,84748.0,0.57359928]
[1743561378710,0.34400335,84759.0,84748.0,0.57359928]
[1743561378899,0.34400335,84759.0,84758.0,0.00147193]
[1743561380006,0.43870335,84759.0,84758.0,0.00147193]
[1743561380201,0.48550335,84759.0,84758.0,0.00147193]
[1743561380709,0.1180049,84749.0,84748.0,0.62039928]
[1743561380908,0.1180049,84749.0,84748.0,0.62099928]
[1743561381213,0.25315299,84749.0,84748.0,0.62099928]
[1743561381721,0.34785299,84749.0,84748.0,0.62099928]
[1743561381906,0.34885299,84749.0,84748.0,0.0474]
[1743561382209,0.34885299,84749.0,84748.0,0.2142063]
[1743561382608,0.34985299,84749.0,84748.0,0.2142063]
[1743561383613,0.34985299,84749.0,84748.0,0.0962]
[1743561384113,0.34985299,84749.0,84748.0,0.0474]
[1743561384416,0.34985299,84749.0,84748.0,0.0468]
[1743561384814,0.1180132,84743.0,84742.0,0.00047202]
[1743561385005,0.1189332,84743.0,84742.0,0.00047202]
[1743561385318,0.2550938,84743.0,84742.0,0.00047202]
[1743561385612,0.3463938,84743.0,84742.0,0.00047202]
[1743561386011,0.3473938,84743.0,84742.0,0.00047202]
[1743561386211,0.3483938,84743.0,84742.0,0.00047202]
[1743561386713,0.3473938,84743.0,84742.0,0.00047202]
[1743561386916,0.3483938,84743.0,84742.0,0.00047202]
[1743561387718,0.3473938,84743.0,84742.0,0.00047202]
[1743561388018,0.4292738,84743.0,84742.0,0.00047202]
[1743561391725,0.4292738,84743.0,84730.0,0.0487]
[1743561391726,0.11803,84731.0,84730.0,0.0487]
[1743561391916,0.1180355,84727.0,84726.0,0.00047211]
[1743561392113,0.1189555,84727.0,84726.0,0.00047211]
[1743561392314,0.24924548,84727.0,84726.0,0.00047211]
[1743561392614,0.26084893,84727.0,84726.0,0.00047211]
[1743561393015,0.26084893,84727.0,84726.0,0.00115211]
[1743561393415,0.30594893,84727.0,84726.0,0.00047211]
[1743561393619,0.30694893,84727.0,84726.0,0.00047211]
[1743561393812,0.38782893,84727.0,84726.0,0.00047211]
[1743561394012,0.38782893,84727.0,84726.0,0.00115211]
[1743561394218,0.38782893,84727.0,84726.0,0.00047211]
[1743561395417,0.38882893,84727.0,84726.0,0.00047211]
[1743561395816,0.1180411,84723.0,84722.0,0.0494]
[1743561396012,0.11900111,84723.0,84722.0,0.0494]
[1743561396218,0.24765944,84723.0,84722.0,0.0494]
[1743561396515,0.60845944,84723.0,84722.0,0.0494]
[1743561397313,0.60945944,84723.0,84722.0,0.0494]
[1743561397519,0.60945944,84723.0,84722.0,0.1674425]
[1743561397827,0.61045944,84723.0,84722.0,0.1674425]
[1743561398029,0.69137944,84723.0,84722.0,0.0494]
[1743561398326,0.61045944,84723.0,84722.0,0.1680425]
[1743561398626,0.61045944,84723.0,84722.0,0.1674425]
[1743561398925,0.61045944,84723.0,84722.0,0.1680425]
[1743561399126,0.61045944,84723.0,84722.0,0.2122425]
[1743561400218,0.69137944,84723.0,84722.0,0.05]
[1743561400527,0.69137944,84723.0,84722.0,0.0494]
[1743561401930,0.73937944,84723.0,84722.0,0.0494]
[1743561402823,0.69137944,84723.0,84722.0,0.05004]
[1743561404420,0.33057944,84723.0,84722.0,0.05004]
[1743561404726,0.69137944,84723.0,84722.0,0.05004]
[1743561405022,0.69137944,84723.0,84722.0,0.0494]
[1743561407626,0.73507944,84723.0,84722.0,0.0494]
[1743561409934,0.69137944,84723.0,84722.0,0.05]
[1743561410930,0.69137944,84723.0,84722.0,0.0972]
[1743561411127,0.73727944,84723.0,84722.0,0.0972]
[1743561413034,0.73727944,84723.0,84722.0,0.0966]
[1743561413236,0.61045944,84723.0,84722.0,0.2146425]
[1743561413837,0.13161834,84723.0,84722.0,0.2146425]
[1743561414132,0.13161834,84723.0,84722.0,0.2152425]
[1743561414438,0.49241834,84723.0,84722.0,0.23071951]
[1743561415233,0.61045944,84723.0,84722.0,0.23071951]
[1743561415531,0.61045944,84723.0,84722.0,0.11267701]
[1743561415829,0.61045944,84723.0,84722.0,0.11207701]
[1743561416037,0.24965944,84723.0,84722.0,0.11207701]
[1743561416737,0.24965944,84723.0,84722.0,0.23071951]
[1743561417036,0.24965944,84723.0,84722.0,0.23072988]
[1743561417428,0.24965944,84723.0,84722.0,0.0972]
[1743561417929,0.29415944,84723.0,84722.0,0.0972]
[1743561418141,0.29415944,84723.0,84722.0,0.09724]
[1743561422542,0.29415944,84723.0,84722.0,0.0966]
[1743561423442,0.29415944,84723.0,84722.0,0.0972]
[1743561423833,0.29415944,84723.0,84722.0,0.0966]
[1743561424234,0.29415944,84723.0,84722.0,0.2146425]
[1743561424440,0.29415944,84723.0,84722.0,0.2152425]
[1743561425140,0.30477956,84723.0,84722.0,0.05]
[1743561425346,0.35097956,84723.0,84722.0,0.0494]
[1743561425546,0.35097997,84723.0,84722.0,0.0494]
[1743561425741,0.35097992,84723.0,84722.0,0.0494]
[1743561425939,0.35098011,84723.0,84722.0,0.0494]
[1743561426241,0.35099073,84723.0,84722.0,0.0494]
[1743561427135,0.34035944,84723.0,84722.0,0.0494]
[1743561427336,0.34035944,84723.0,84716.0,0.048]
[1743561427337,0.1180495,84717.0,84716.0,0.048]
[1743561427541,0.1190495,84717.0,84716.0,0.0486]
[1743561427844,0.24620452,84717.0,84716.0,0.0486]
[1743561428148,0.24620452,84717.0,84716.0,0.2143508]
[1743561428334,0.33920452,84717.0,84716.0,0.2143508]
[1743561428941,0.34020452,84717.0,84716.0,0.2143508]
[1743561429346,0.34020452,84717.0,84716.0,0.0963]
[1743561429530,0.38530452,84717.0,84716.0,0.0963]
[1743561429938,0.38630452,84717.0,84716.0,0.0963]
[1743561431148,0.38630452,84717.0,84716.0,0.0957]
[1743561431445,0.38630452,84717.0,84716.0,0.0483]
[1743561431639,0.38630452,84717.0,84716.0,0.0477]
[1743561432146,0.38630452,84717.0,84716.0,0.04862]
[1743561432547,0.52656854,84717.0,84716.0,0.04862]
[1743561433235,0.48146854,84717.0,84716.0,0.04862]
[1743561433437,0.27041904,84717.0,84716.0,0.1666708]
[1743561433632,0.27041904,84717.0,84716.0,0.5274708]
[1743561433947,0.38846854,84717.0,84716.0,0.1666708]
[1743561435836,0.24820452,84717.0,84716.0,0.1666708]
[1743561437837,0.13015502,84717.0,84716.0,0.1666708]
[1743561438046,0.003,84717.0,84716.0,0.1666708]
[1743561439148,0.002,84717.0,84716.0,0.1666708]
[1743561439649,0.00292,84717.0,84716.0,0.1666708]
[1743561439850,0.002,84717.0,84716.0,0.5274708]
[1743561440937,0.00292,84717.0,84716.0,0.5274708]
[1743561441941,0.002,84717.0,84716.0,0.5274708]
[1743561443347,0.1200495,84717.0,84716.0,0.5274708]
[1743561443847,0.002,84717.0,84716.0,0.5274708]
[1743561446955,0.10511633,84724.0,84723.0,0.1180411]
[1743561447150,0.10603633,84724.0,84723.0,0.4794411]
[1743561447546,0.10603633,84724.0,84723.0,0.6176411]
[1743561448859,0.10703633,84724.0,84723.0,0.6176411]
[1743561449061,0.10803633,84724.0,84723.0,0.6186411]
[1743561450768,0.00292,84724.0,84723.0,0.6186411]
[1743561450967,0.00292,84724.0,84723.0,0.5731411]
[1743561451978,0.002,84724.0,84723.0,0.5731411]
[1743561453661,0.002,84724.0,84723.0,0.6539811]
[1743561455068,0.003,84724.0,84723.0,0.6539811]
[1743561455665,0.002,84724.0,84723.0,0.6539811]
[1743561458267,0.002,84724.0,84723.0,0.4804411]
[1743561458472,0.24430555,84724.0,84723.0,0.0016]
[1743561458771,0.24522555,84724.0,84723.0,0.0016]
[1743561461068,0.24522555,84724.0,84723.0,0.001]
[1743561461982,0.24522555,84724.0,84723.0,0.1190411]
[1743561462169,0.24522555,84724.0,84723.0,0.1196411]
[1743561462371,0.24522555,84724.0,84723.0,0.1673411]
[1743561463273,0.00292,84724.0,84723.0,0.1673411]
[1743561463479,0.1209597,84724.0,84723.0,0.2172411]
[1743561464267,0.22596004,84724.0,84723.0,0.2172411]
[1743561466283,0.10792034,84724.0,84723.0,0.2172411]
[1743561468066,0.00292,84724.0,84723.0,0.2172411]
[1743561468271,0.1209597,84724.0,84723.0,0.2172411]
[1743561468577,0.1209597,84724.0,84723.0,0.1196411]
[1743561470081,0.2540235,84724.0,84723.0,0.1196411]
[1743561472169,0.1359838,84724.0,84723.0,0.1196411]
[1743561472375,0.2540235,84724.0,84723.0,0.1702411]
[1743561472865,0.2540235,84724.0,84723.0,0.1196411]
[1743561475969,0.2540235,84724.0,84723.0,0.1665411]
[1743561477379,0.1359838,84724.0,84723.0,0.1665411]
[1743561477770,0.1359838,84724.0,84723.0,0.2155411]
[1743561477974,0.00292,84724.0,84723.0,0.2155411]
[1743561478183,0.002,84724.0,84723.0,0.2155411]
[1743561478483,0.003,84724.0,84723.0,0.2155411]
[1743561480590,0.002,84724.0,84723.0,0.2155411]
[1743561482080,0.002,84724.0,84723.0,0.5763411]
[1743561484795,0.10519162,84731.0,84730.0,0.1180313]
[1743561484992,0.10615163,84731.0,84730.0,0.4798313]
[1743561485294,0.23436908,84731.0,84730.0,0.4798313]
[1743561485698,0.23436908,84731.0,84730.0,0.5734313]
[1743561486288,0.23436908,84731.0,84730.0,0.5744313]
[1743561487599,0.12935448,84731.0,84730.0,0.5744313]
[1743561491201,0.12935448,84731.0,84730.0,0.58637289]
[1743561495398,0.24738448,84731.0,84730.0,0.5274313]
[1743561495802,0.12935448,84731.0,84730.0,0.5274313]
[1743561496299,0.22295448,84731.0,84730.0,0.5274313]
[1743561497405,0.34098448,84731.0,84730.0,0.1666313]
[1743561497600,0.34098448,84731.0,84730.0,0.1200313]
[1743561500099,0.22295448,84731.0,84730.0,0.1200313]
[1743561500310,0.28086908,84731.0,84730.0,0.1200313]
[1743561500501,0.14026402,84737.0,84736.0,0.118023]
[1743561500706,0.0943,84745.0,84742.0,0.0590067]
[1743561500909,0.09494,84745.0,84744.0,0.1180118]
[1743561501207,0.34501261,84745.0,84744.0,0.1187318]
[1743561501401,0.39451261,84745.0,84744.0,0.1662318]
[1743561504500,0.39451261,84745.0,84744.0,0.1187318]
[1743561504704,0.1180202,84739.0,84738.0,0.1770232]
[1743561505003,0.1180202,84739.0,84738.0,0.1777832]
[1743561505004,0.24772022,84739.0,84738.0,0.1777832]
[1743561505302,0.34372022,84739.0,84738.0,0.1777832]
[1743561505506,0.22570002,84739.0,84738.0,0.2256832]
[1743561506199,0.34371882,84739.0,84738.0,0.2256832]
[1743561506502,0.34371882,84739.0,84738.0,0.1787832]
[1743561506803,0.34371882,84739.0,84738.0,0.1777832]
[1743561507001,0.34371882,84739.0,84738.0,0.1797832]
[1743561507303,0.22570002,84739.0,84738.0,0.1797832]
[1743561507498,0.17720002,84739.0,84738.0,0.2777832]
[1743561507906,0.04822,84739.0,84738.0,0.2777832]
[1743561509096,0.04822,84739.0,84738.0,0.2757832]
[1743561509301,0.04822,84739.0,84738.0,0.2767832]
[1743561510709,0.0475,84739.0,84738.0,0.2767832]
[1743561511105,0.0478,84744.0,84743.0,0.1180132]
[1743561511308,0.04856,84744.0,84743.0,0.1187732]
[1743561511497,0.17785705,84744.0,84743.0,0.1187732]
[1743561512111,0.13005705,84744.0,84743.0,0.4795732]
[1743561512310,0.13005705,84744.0,84743.0,0.1681732]
[1743561512504,0.17851705,84744.0,84743.0,0.1681732]
[1743561514316,0.17851705,84744.0,84743.0,0.17711624]
[1743561515208,0.29652885,84744.0,84743.0,0.17711624]
[1743561516116,0.17851705,84744.0,84743.0,0.17711624]
[1743561516809,0.13001705,84744.0,84743.0,0.17711624]
[1743561517019,0.17555505,84759.0,84758.0,0.1179924]
[1743561517206,0.17647505,84759.0,84758.0,0.4797124]
[1743561517407,0.31053761,84759.0,84758.0,0.4797124]
[1743561517817,0.20923181,84765.0,84764.0,0.117984]
[1743561518012,0.21051181,84765.0,84764.0,0.119264]
[1743561518215,0.21051181,84765.0,84764.0,0.13124009]
[1743561518411,0.00017702,84773.0,84772.0,0.1179729]
[1743561518606,0.00017702,84773.0,84772.0,0.1196529]
[1743561518806,0.1238348,84773.0,84772.0,0.1196529]
[1743561519025,0.1238348,84773.0,84772.0,0.2118529]
[1743561519711,0.1729348,84773.0,84772.0,0.2118529]
[1743561520101,0.2909063,84773.0,84772.0,0.2118529]
[1743561520902,0.2919063,84773.0,84772.0,0.2118529]
[1743561521314,0.2929063,84773.0,84772.0,0.2118529]
[1743561525118,0.1749348,84773.0,84772.0,0.2118529]
[1743561526017,0.1258348,84773.0,84772.0,0.2118529]
[1743561526220,0.3608,84794.0,84781.0,0.1179603]
[1743561526221,0.0491,84782.0,84781.0,0.1179603]
[1743561526414,0.0491,84782.0,84781.0,0.1195603]
[1743561526610,0.29707577,84782.0,84781.0,0.1195603]